Cogmind - Beta 16 @@@ ROGUE MODE // 2025.10.23 @ 18:11:59 Player: Petvaria Result: Self-destructed Performance ------------- Evolutions (3) 1500 Regions Visited (4) 800 Robots Destroyed (87) 435 Value Destroyed (2477) 2477 Prototype IDs (16) 320 Alien Tech Used (0) 0 Bonus (11) 11 TOTAL SCORE: 5543 Bonus ------- High Alert Combat Kills 11 Cogmind --------- Core Integrity 257/700 Matter 275/300 Energy 42/100 System Corruption 7% Temperature Cool (0) Movement Core (100) Ox1 Location -7/Factory Parts ------- > --- POWER (1) -------- (None) > --- PROPULSION (4) --- (None) > --- UTILITY (6) ------ Improved Sensor Array Improved Signal Interpreter Transport Network Coupler Hacking Suite Hacking Suite Hacking Suite > --- WEAPON (2) ------- Chainsword > --- INVENTORY (5) ---- Hacking Suite Hacking Suite System Shield Improved Datajack Katana Peak State ------------ > --- POWER ------------ Light Nuclear Core > --- PROPULSION ------- Improved Flight Unit Improved Flight Unit Improved VTOL Module Xenon Bombardment Thruster > --- UTILITY ---------- Medium Storage Unit Improved Sensor Array Improved Signal Interpreter Hacking Suite Hacking Suite Hacking Suite > --- WEAPON ----------- Chainsword > --- INVENTORY -------- Light Nuclear Core Cesium-ion Thruster Xenon Bombardment Thruster Hacking Suite Hacking Suite System Shield Katana [Rating: 39] Favorites ----------- Power Light Ion Engine Engine Light Ion Engine Power Core Light Nuclear Core Propulsion Light Treads Treads Light Treads Leg Aluminum Leg Wheel Subdweller Monowheel Flight Unit Improved Flight Unit Utility Scrap Shield Device Improved Heat Sink Storage Small Storage Unit Processor Improved Signal Interpreter Hackware Hacking Suite Protection Scrap Shield Weapon Subdweller Laser Energy Gun Subdweller Laser Energy Cannon Subdweller Beam Cannon Ballistic Gun Barrage Gun Ballistic Cannon Battle Cannon Launcher Subdweller Shrapnel Launcher Slashing Weapon Chainsword Build | -11 -10 -10 -8 -7 ------- Run | Yrd Mat Sub Mat Fac Slots Evolved 6 | . . . 4 2 Power . | . . . . . Propulsion 2 | . . . 2 . Utility 4 | . . . 2 2 Weapon . | . . . . . Parts Attached 96 | 8 . 29 42 17 Power 11 | 1 . 2 6 2 Engine 4 | 1 . 2 1 . Core 7 | . . . 5 2 Reactor . | . . . . . Propulsion 36 | 4 . 5 22 5 Treads 17 | 2 . . 15 . Leg 4 | . . . 4 . Wheel 8 | 2 . 5 1 . Hover . | . . . . . Flight 7 | . . . 2 5 Utility 23 | 1 . 7 7 8 Device 5 | . . 1 3 1 Storage 4 | 1 . . 2 1 Processor 2 | . . . . 2 Hackware 4 | . . . . 4 Protection 8 | . . 6 2 . Artifact . | . . . . . Weapon 26 | 2 . 15 7 2 Energy Gun 9 | 2 . 5 2 . Energy Cannon 3 | . . 3 . . Ballistic Gun 8 | . . 3 5 . Ballistic Cannon 2 | . . 2 . . Launcher 2 | . . 2 . . Special Weapon . | . . . . . Impact Weapon . | . . . . . Slashing Weapon 2 | . . . . 2 Piercing Weapon . | . . . . . Special Melee Weapon . | . . . . . Unidentified Prototypes 4 | . . . 4 . Parts Lost 34 | . . 6 17 11 Power 8 | . . 1 4 3 Propulsion 15 | . . 2 6 7 Utility 4 | . . 1 2 1 Weapon 7 | . . 2 5 . Highest Loss Streak 7 | . . 4 6 7 To Critical Strikes . | . . . . . Average Backups 5 | 2 3 4 9 7 Power . | . 1 . . . Propulsion 1 | . 1 . 3 1 Utility 1 | . . . 2 3 Weapon 2 | . 1 2 3 1 Tool/Special . | . . . . . Unused Backups 18 | . . 6 4 8 Power 1 | . . . 1 . Propulsion 2 | . . 2 . . Utility 5 | . . 1 1 3 Weapon 9 | . . 3 2 4 Tool/Special 1 | . . . . 1 Average Slot Usage (%) 81 | . 85 81 77 87 Engine 8 | . 14 11 1 . Core 2 | . . . 7 6 Treads 16 | . 28 16 25 . Leg 1 | . . . 5 . Wheel 7 | . . 10 1 . Flight 2 | . . . . 29 Device 2 | . . . 7 6 Storage 3 | . 14 . 8 6 Hackware 2 | . . . . 21 Protection 9 | . . 12 3 . Energy Gun 11 | . 28 13 8 . Energy Cannon 5 | . . 6 5 . Ballistic Gun 3 | . . 4 3 . Ballistic Cannon 1 | . . 2 . . Peak Build Rating 39 | 6 6 14 32 39 Average Rating 15 | 3 6 12 20 36 On Entrance 10 | . 6 6 12 30 Avg Prop Armor Cover (%) 4 | . . 3 7 6 Naked Turns . | . . . . . Heaviest Build 42 | 10 10 35 42 19 Greatest Support 83 | 40 40 40 83 21 Greatest Overweight (x) 11 | . . 11 5 1 Average Overweight (x) . | . . 1 . . Largest Inventory Capacity 15 | 8 8 8 15 15 Average Capacity 6 | 7 8 5 11 9 Most Carried 15 | 5 3 8 15 15 Average Carried 5 | 3 3 4 10 7 Final Capacity 15 | 8 8 5 15 5 Final Carried 15 | 3 3 4 15 5 Class Distribution -------------------- 38% | Subdweller-Mutant 35% | Mutant 16% | Scavenger-Mutant 9% | Hacker-Sprinter Dominant Class ---------------- Mutant | -10/Materials Subdweller-Mutant | -10/Subcaves Scavenger-Mutant | -8/Materials Hacker-Sprinter | -7/Factory Resources | -11 -10 -10 -8 -7 ----------- Run | Yrd Mat Sub Mat Fac Matter Collected 2728 | 208 . 1254 1086 180 Remotely . | . . . . . Salvage Created 3890 | . . 743 2629 518 Parts 208 | . . 43 121 44 Haulers Intercepted 10 | . . . 5 5 Recyclers Shooed . | . . . . . Parts Field Recycled . | . . . . . Retrieved Matter . | . . . . . Parts Self-Destructed 10 | . . 10 . . Prevented . | . . . . . Parts Restored . | . . . . . Kills | -11 -10 -10 -8 -7 ------- Run | Yrd Mat Sub Mat Fac Combat Hostiles Destroyed 56 | . . 19 35 2 Melee 2 | . . . . 2 Guns 33 | . . 9 24 . Cannons 18 | . . 8 10 . AOE 2 | . . 2 . . Classes Destroyed 15 | . . 4 8 3 Worker 1 | . . . 1 . Builder 5 | . . . 1 4 Tunneler 2 | . . . . 2 Hauler 10 | . . . 5 5 Recycler 8 | . . . 8 . Operator 3 | . . . . 3 Watcher 2 | . . . 2 . Swarmer 9 | . . 4 4 1 Grunt 22 | . . . 22 . Brawler 1 | . . . 1 . Duelist 1 | . . . 1 . Sentry 8 | . . 1 7 . Programmer 1 | . . . . 1 Artisan 2 | . . 2 . . Subdweller 14 | . . 14 . . Best Kill Streak 6 | . . 3 6 5 Combat Bots Only 5 | . . 3 5 1 Max Kills in Single Turn 2 | . . 2 1 1 Gunslinging . | . . . . . Exploded 2 | . . 2 . . Melee 1 | . . . . 1 Uniques/NPCs Destroyed . | . . . . . Combat | -11 -10 -10 -8 -7 -------- Run | Yrd Mat Sub Mat Fac Hostile Shots Fired 505 | . . 119 234 152 Missed 155 | . . 33 43 79 Hits 350 | . . 86 191 73 Melee 6 | . . . 4 2 Projectile 344 | . . 86 187 71 Critical Strikes 14 | . . 4 9 1 Damage Taken 5692 | . . 1752 2958 982 Core 1075 | . . 205 427 443 Absorbed by Shields 40 | . . . . 40 Regen/Repaired (Parts) 15 | . . . . 15 Core Remaining (%) 46 | 100 . 18 22 . Volleys Fired 388 | . . 222 166 . Largest 2 | . . 2 2 . Hottest 141 | . . 140 141 . Shots Fired 609 | . . 295 314 . Gun 360 | . . 124 236 . Cannon 238 | . . 160 78 . Launcher 11 | . . 11 . . Special . | . . . . . Kinetic 242 | . . 99 143 . Thermal 367 | . . 196 171 . Explosive . | . . . . . Electromagnetic . | . . . . . Robot Hit Streak 29 | . . 29 20 . Robot Miss Streak 5 | . . 3 5 . Penetration Max . | . . . . . Secondary Targets 2 | . . . 2 . Max Gunslinging Chain 1 | . . . 1 . Shots Hit Robots 381 | . . 130 208 43 Core Hits 132 | . . 39 80 13 Critical Kills 1 | . . . 1 . Critical Parts Destroyed 2 | . . 1 1 . Critical Strikes 11 | . . 4 3 4 Burn 1 | . . . 1 . Meltdown 1 | . . . 1 . Destroy 4 | . . 3 1 . Blast 1 | . . 1 . . Sever 4 | . . . . 4 Melee Attacks 79 | . . . . 79 Impact . | . . . . . Slashing 79 | . . . . 79 Piercing . | . . . . . Sneak Attacks 16 | . . . . 16 Combat Hostiles . | . . . . . Follow-up Attacks . | . . . . . Damage Inflicted 9552 | . . 2919 4410 2223 Guns 4891 | . . 1803 3088 . Cannons 2126 | . . 807 1319 . Explosions 307 | . . 307 . . Melee 2218 | . . . . 2218 Ramming 10 | . . 2 3 5 Kinetic 3298 | . . 1594 1704 . Thermal 4026 | . . 1323 2703 . Explosive . | . . . . . Electromagnetic . | . . . . . Impact . | . . . . . Slashing 2218 | . . . . 2218 Piercing . | . . . . . Highest Corruption 7 | . . . 1 7 Average Corruption 1 | . . . 1 2 Corruption Purged . | . . . . . Corruption Blocked . | . . . . . Effects 21 | . . . 12 9 Message Errors 4 | . . . 2 2 Matter Fused 5 | . . . 3 2 Heat Flow Errors 2 | . . . 2 . Energy Discharges 3 | . . . . 3 Parts Rejected 1 | . . . 1 . Data Loss (minor) 3 | . . . 2 1 Alerts 3 | . . . 2 1 Overload Shots . | . . . . . Overflow Damage 411 | . . 72 20 319 Projectiles 20 | . . . 20 . Explosions 72 | . . 72 . . Melee 319 | . . . . 319 Knockbacks 12 | . . 12 . . Impact . | . . . . . Kinetic 12 | . . 12 . . Secondary . | . . . . . Self-Inflicted Damage 106 | . . 104 . 2 Shots 3 | . . 3 . . Rammed 4 | . . 1 1 2 Targets Rammed 4 | . . 1 1 2 Kicked . | . . . . . Crushed . | . . . . . Highest Temperature 562 | . . 280 562 5 Average Temperature 103 | . . 23 123 3 Received Heat Transfer 2193 | . . 576 1575 42 Effects 9 | . . . 9 . Energy Bleed 2 | . . . 2 . Interference 2 | . . . 2 . Short Circuit 2 | . . . 2 . Damage (minor) 3 | . . . 3 . Siege Activations . | . . . . . Martial Activations . | . . . . . Shielding Activations . | . . . . . Robots Disrupted . | . . . . . Combat Hostiles . | . . . . . Robots Corrupted . | . . . . . Combat Hostiles . | . . . . . Parts Fried . | . . . . . Impact Corruptions . | . . . . . Robots Melted 1 | . . . 1 . Combat Hostiles 1 | . . . 1 . Parts Melted 13 | . . 4 9 . Heat Transferred 5989 | . . 1718 4271 . Parts Sabotaged . | . . . . . Parts Stolen . | . . . . . Parts Stripped . | . . . . . Power Chain Reactions . | . . . . . Alert | -11 -10 -10 -8 -7 ------- Run | Yrd Mat Sub Mat Fac Maximum Alert Level 2 | . . . 2 1 Low Security (%) 68 | 100 100 . 66 67 Level 1 29 | . . . 30 32 Level 2 2 | . . . 3 . Level 3 . | . . . . . Level 4 . | . . . . . Level 5 . | . . . . . High Security . | . . . . . Max Security . | . . . . . Peak Influence 408 | . 30 . 408 250 Initial 182 | . . . 93 182 Average 155 | . 5 . 189 117 Influence Increases 2019 | . 30 220 1113 656 Destroy 0b10 Robot/C 840 | . . 100 700 40 Destroy 0b10 Robot/NC 155 | . . . 85 70 Destroy Leader 184 | . . . 164 20 Successful Hack 99 | . . . 13 86 Select Force Hacks 150 | . . . 60 90 Disable Machine 60 | . . . 30 30 Destroy Structure 51 | . . . 31 20 Partial Spotted 90 | . . . . 90 Lose Combat Pursuer 390 | . 30 120 30 210 Influence Decreases 1979 | . 30 40 893 1016 Entered New Map 305 | . . . 87 218 Time Decay 1115 | . 30 20 636 429 Lost Part 286 | . . 20 170 96 Purge Threat 273 | . . . . 273 Squads Dispatched 16 | . . . 5 11 Investigation 7 | . . . 2 5 Extermination 3 | . . . . 3 Reinforcement 6 | . . . 3 3 Assault . | . . . . . Garrison . | . . . . . Intercept . | . . . . . Searches Triggered . | . . . . . Construction Impeded 3 | . . . 2 1 Haulers Reinforced 1 | . . . . 1 Active Scanning Responses . | . . . . . Cargo Convoy Interrupts . | . . . . . Stealth | -11 -10 -10 -8 -7 --------- Run | Yrd Mat Sub Mat Fac Distress Signals 9 | . 1 . 5 3 Communications Jammed . | . . . . . Distress Signals . | . . . . . Times Spotted 118 | . 1 21 56 40 Peak Tracking Total 9 | . 3 4 7 9 Tactical Retreats 14 | . 1 3 2 8 Traps | -11 -10 -10 -8 -7 ------- Run | Yrd Mat Sub Mat Fac Traps Triggered 8 | . . 1 5 2 Indirectly . | . . . . . Trap Hack Attempts . | . . . . . Triggered . | . . . . . Disarmed . | . . . . . Reprogrammed . | . . . . . Reused . | . . . . . Traps Extracted . | . . . . . Installed . | . . . . . Triggered . | . . . . . Machines | -11 -10 -10 -8 -7 ---------- Run | Yrd Mat Sub Mat Fac Machines Disabled 7 | . . 3 2 2 Max in Single Turn 3 | . . 3 1 1 Garrison Access 3 | . . . 1 2 Machines Repaired . | . . . . . Machines Dismantled . | . . . . . Machines Sabotaged . | . . . . . Overloaded Fab Kills . | . . . . . Hacking | -11 -10 -10 -8 -7 --------- Run | Yrd Mat Sub Mat Fac Machines Accessed 28 | . . 2 8 18 Terminals 14 | . . . 4 10 Fabricators 2 | . . . . 2 Repair Stations 1 | . . . . 1 Recycling Units 5 | . . . 2 3 Scanalyzers 1 | . . . 1 . Garrison Access 3 | . . . 1 2 Total Hacks 69 | . . 4 20 45 Successful 36 | . . 4 9 23 Failed 33 | . . . 11 22 Catastrophic 1 | . . . 1 . Database Lockouts . | . . . . . Manual 33 | . . . 17 16 Terminals 44 | . . . 13 31 Fabricators 5 | . . . . 5 Repair Stations 2 | . . . . 2 Recycling Units 8 | . . . 5 3 Scanalyzers 1 | . . . 1 . Garrison Access 5 | . . . 1 4 Terminal Hacks 14 | . . 4 1 9 Record 3 | . . 3 . . Branch Access Points 2 | . . . 1 1 Unreport Threat 2 | . . . . 2 Recall Investigation 1 | . . . . 1 Recall Extermination 1 | . . . . 1 Hauler Manifests 2 | . . . . 2 Registered Components 1 | . . . . 1 Registered Prototypes 1 | . . . . 1 Proto ID Catalog 1 | . . 1 . . Fabricator Hacks . | . . . . . Repair Station Hacks 2 | . . . . 2 Scan Component 1 | . . . . 1 Repair 1 | . . . . 1 Recycling Unit Hacks . | . . . . . Scanalyzer 1 | . . . 1 . Retrieve Study 1 | . . . 1 . Garrison Access Hacks 3 | . . . 1 2 Seal Access 3 | . . . 1 2 Unauthorized Hacks 16 | . . . 6 10 Terminals 8 | . . . 3 5 Assimilate 1 | . . . . 1 Botnet 4 | . . . . 4 Skim 3 | . . . 3 . Fabricators 2 | . . . . 2 Fabnet 1 | . . . . 1 Haulers 1 | . . . . 1 Repair Stations . | . . . . . Recycling Units 6 | . . . 3 3 Mask 1 | . . . 1 . Tunnel 5 | . . . 2 3 Scanalyzers . | . . . . . Garrison Access . | . . . . . Data Cores Recovered . | . . . . . Used . | . . . . . Hacking Detections 14 | . . . 2 12 Full Trace Events 2 | . . . . 2 Feedback Events . | . . . . . Feedback Blocked . | . . . . . Robot Schematics Acquired . | . . . . . Robots Built . | . . . . . Authchips . | . . . . . Time . | . . . . . Total Robot Build Rating . | . . . . . Part Schematics Acquired . | . . . . . Parts Built . | . . . . . Authchips . | . . . . . Time . | . . . . . Total Part Build Rating . | . . . . . Part Studies Acquired 1 | . . . 1 . Parts Repaired 1 | . . . . 1 Time 51 | . . . . 51 Parts Recycled . | . . . . . Recycled Matter . | . . . . . Retrieved Matter . | . . . . . Retrieved Components . | . . . . . Parts Scanalyzed . | . . . . . Part Schematics Acquired . | . . . . . Parts Damaged . | . . . . . Bothacking | -11 -10 -10 -8 -7 ------------ Run | Yrd Mat Sub Mat Fac Used RIF Installer . | . . . . . Robots Hacked . | . . . . . Non-combat . | . . . . . Combat . | . . . . . Robot Hacks Applied . | . . . . . Relay Couplers Released . | . . . . . Fabnet Peak Effective % . | . . . . . Robots Rewired . | . . . . . Allies Hacked . | . . . . . Hacks Repelled . | . . . . . Allies | -11 -10 -10 -8 -7 -------- Run | Yrd Mat Sub Mat Fac Total Allies 1 | . . . . 1 Largest Group 1 | . . . . 1 Highest-Rated Group 26 | . . . . 26 Highest-Rated Ally 26 | . . . . 26 Total Orders . | . . . . . Ally Attacks . | . . . . . Total Damage . | . . . . . Kills . | . . . . . Allies Corrupted . | . . . . . Allies Melted . | . . . . . Intel | -11 -10 -10 -8 -7 ------- Run | Yrd Mat Sub Mat Fac Active Infowar (turns) 976 | . . . . 976 Sensors 915 | . . . . 915 T.N.C. 72 | . . . . 72 Robot Analysis Total . | . . . . . Derelict Logs Recovered 1 | . . 1 . . Drone Launches . | . . . . . Drone Recoveries . | . . . . . Exploration | -11 -10 -10 -8 -7 ------------- Run | Yrd Mat Sub Mat Fac Turns Passed 11783 | 81 142 8147 2255 1158 Spaces Moved 7300 | 50 64 3541 973 2672 Core 335 | 15 . 311 1 8 Treads 2629 | 34 64 1794 737 . Legs 177 | . . . 177 . Wheels 1495 | 1 . 1436 58 . Hover . | . . . . . Flight 2664 | . . . . 2664 Fastest Speed 29 | 50 160 110 100 29 Average Speed 124 | 125 160 186 157 30 Slowest Speed 600 | 160 160 600 300 114 Overloaded Moves . | . . . . . Propulsion Burnouts . | . . . . . Robots Hopped 30 | . . . . 30 Potential Cave-ins . | . . . . . Cave-ins Triggered . | . . . . . Exploration Rate (%) 49 | 6 13 98 65 64 Regions Visited 4 Branch Regions 1 Pre-discovered Areas 6 | . . 1 2 3 Known Exits Taken . | . . . . . Unknown Exits Taken 4 | 1 1 1 1 . Scrap Searched 11 | . . 11 . . Spaces Dug 78 | . . 58 . 20 Terrain Destroyed 255 | . . 207 28 20 Melee 20 | . . . . 20 Projectile 74 | . . 46 28 . AOE 161 | . . 161 . . Terrain Rammed . | . . . . . Walls Destroyed . | . . . . . Machines Disabled . | . . . . . Actions | -11 -10 -10 -8 -7 --------- Run | Yrd Mat Sub Mat Fac Total 9286 | 68 104 4801 1439 2874 Wait 1189 | . 41 896 169 83 Move 7237 | 49 63 3540 972 2613 Hop 29 | . . . . 29 Pick Up 103 | 9 . 36 40 18 Fast Attach 42 | 2 . 13 25 2 Attach 64 | 6 . 18 21 19 Detach 7 | . . 3 4 . Swap 23 | . . 10 12 1 Drop 91 | 2 . 41 29 19 Fire 388 | . . 222 166 . Melee 79 | . . . . 79 Ram 3 | . . 1 . 2 Kick . | . . . . . Crush 1 | . . . 1 . Escape Stasis 9 | . . . . 9 Rewire . | . . . . . Trap . | . . . . . Miscellaneous 21 | . . 21 . . Route ------- -11/Scrapyard -10/Materials -10/Subcaves (discovered 3 exits: *Mat x2 / [*Rec]) -8/Materials (discovered 2 exits: *Fac x2) -7/Factory (discovered 4 exits: *Fac x2 / *Low x2) History --------- Turn | Location | Event 2 | -11/Scrapyard | Met Revision 17 3 | -11/Scrapyard | Discovered new exit (range 15) 82 | -11/Scrapyard | Entered Materials 203 | -10/Materials | Discovered new exit (range 8) 224 | -10/Materials | Entered Subcaves 316 | -10/Subcaves | Build established: Mutant 841 | -10/Subcaves | Shifting Twisted Machinery released Piercing Trap 844 | -10/Subcaves | Shifting Twisted Machinery released Sub. Monowheel 849 | -10/Subcaves | Discovered new exit (range 9) 878 | -10/Subcaves | Shifting Twisted Machinery released Sub. Monowheel 879 | -10/Subcaves | Shifting Twisted Machinery released Sub. Laser 879 | -10/Subcaves | Shifting Twisted Machinery released Barrage Gun 1056 | -10/Subcaves | Visited Clippyterm 1061 | -10/Subcaves | Learned Factory garrison access intel 1409 | -10/Subcaves | A swath of the cavern ceiling suddenly collapsed 2111 | -10/Subcaves | Discovered new exit (range 3) 2586 | -10/Subcaves | Disturbed a concealed Subdweller 2833 | -10/Subcaves | Shifting Twisted Machinery released Riot Gun 3444 | -10/Subcaves | Disturbed a concealed Subdweller 3481 | -10/Subcaves | Disturbed a concealed Subdweller 3746 | -10/Subcaves | Core integrity fell below 50% 3763 | -10/Subcaves | Lost 4 parts (1p1n1u1w) 4215 | -10/Subcaves | Build established: Subdweller-Mutant 4295 | -10/Subcaves | A swath of the cavern ceiling suddenly collapsed 5419 | -10/Subcaves | Visited 4L-MR0's lab 6059 | -10/Subcaves | Discovered new exit (range 10) 8344 | -10/Subcaves | Ambushed by Subdweller buried in earth 8356 | -10/Subcaves | Core integrity fell below 20% 8371 | -10/Subcaves | Entered Materials 8371 | -8/Materials | Evolved 4 slots: Propulsion x2, Utility x2 8965 | -8/Materials | Core integrity fell below 50% 8985 | -8/Materials | Lost 6 parts (1p3n2w) 9153 | -8/Materials | Discovered new exit (range 13) 9280 | -8/Materials | Build established: Scavenger-Mutant 10213 | -8/Materials | Lost 3 parts (1p2u) 10603 | -8/Materials | Discovered new exit (range 15) 10626 | -8/Materials | Entered Factory 10626 | -7/Factory | Evolved 2 slots: Utility x2 10627 | -7/Factory | Loaded intel: 4 garrison access locations 10646 | -7/Factory | Discovered new exit (range 10) 10889 | -7/Factory | Identified exit to Lower Caves 10930 | -7/Factory | Build established: Hacker-Sprinter 11016 | -7/Factory | Discovered new exit (range 5) 11019 | -7/Factory | Identified exit to Factory 11041 | -7/Factory | Repaired Imp. Flight Unit? 11735 | -7/Factory | Discovered exit to Factory (range 10) 11778 | -7/Factory | Core integrity fell below 50% 11784 | -7/Factory | Self-destructed Last Messages --------------- Field strength at 66. M-28 Smith repairs S-27 Virus. Field strength at 55. Field strength at 40. Field strength at 30. Field strength at 20. Field strength at 4. Stasis field depleted. R-06 Scavenger destroyed. Door malfunctions. Imp. Flight Unit destroyed. Xenon Bombardment Thruster destroyed. Imp. VTOL Module destroyed. Cesium-ion Thruster destroyed. Dropped Med. Storage Unit. S-27 Virus destroyed. W-25 Informer sends out distress signal. Acquired Hacking Suite. System corrupted: Energy discharge (-15). Xenon Bombardment Thruster destroyed. Map ----- +----------------------------------------------------+ | ! #????????? """"""""" #[ """ ### | | ###????????# # #?? | | """ #??????????# """"""""" # """ #?? | | "G #??????????# # """ #?? | | """ #??????????#?? ??"""""""" # """ #?? | | #??????????????????? # ### | | #????????????????????????############## | | ### #?????????????? ????????????????????# | | #?? #?????????????? ????????????????????# | | #?? #?????????????? ????????????????????# | | ##+####??+#?????????????? ????????????????????## | | ????????????????????????? "????????????????????? | | ????????????????????????? ??? ???????????????? | | ?????????????????????????? """ ""???????????????? | | ?????????????????????????? """ """??????????????? | | ?????????????????????????? """ """??????????????? | | ?????????????????????????? ???????????????? | | ?????????????????????????? ?????????????????? | | #????????????????????????? ???????????????????? | | ############w##############+##############"####### | | [%* | | = | | ! | | ############+##############+##############/####### | | ###??????? ??????# !#????? ????? | | #?????""" """ "????# @"""""" #???""" """ #?# | | #??? """ """ """??# """""" #?# """ """ #?# | | #?# """ """ """ ?# """""" #?# """ """ #?#* | | #?# ?# """""" #?# #?# | | #?#?? """ """ ?#! """""?????? #?# | | #???? """ """??# """"??????? * = #?# | | #???"T" ] ?????????# """???????# ??# | | #?????" ?????????# ""?????????#######????# | | ###?????####?????????# "?????????????????????## | | ?????????????????????# ??????????????????????? | | ?????????????????????# ??????????????????????? | | ?????????????????????######??????????????????????? | | ###??????????????????????????????????????????????? | | #??????????????????????????????????????????????? | | #??????????????????????????????????????????????? | | #??????????????????????????????????????????????? | | #??????????????????????????????????????????????? | | #??????????????????????????????????????????????? | | ???????????????????????????????????????????????? | | ?????????????????????????????????????????????????? | | ?????????????????????????????????????????????????? | | ######???????????????????????????????????????????? | | ???????????????????????????????????????? | | ??????????>????????????????????????????? | | ???????????????????????????????????????? | +----------------------------------------------------+ Best States ------------- Heat Dissipation 73 Energy Generation 15 Energy Capacity 200 Matter Stores 300 Matter Capacity 300 Sight Range 16 Robot Scan Range 15 Terrain Scan Density 10 Armor Coverage 800 Evasion (%) 64 Recoil Reduction 4 Offensive Hacking 30 Item Schematics ----------------- None Robot Schematics ------------------ None Fabricated ------------ Nothing Repaired ---------- Imp. Flight Unit | 62% | -7/Factory Studied --------- Lgt. Nuclear Core | -8/Materials | Hacked Alien Tech Used ----------------- None Achievements -------------- Art Critic Construction Begets Destruction Do Not Disturb Myspace Network Effect Well Done You Again Challenges ------------ None Game ------ Seed SwarmExperimentalHumpback Manual? 0 Play Time 01:16:46 Cumulative 308.3 hours Start 2025.10.23 @ 16:51:29 End 2025.10.23 @ 18:11:59 Sessions 3 Manual Loads 0 Difficulty Rogue Special Mode None Game No. 239 Rogue 239 Adventurer 0 Explorer 0 Win Type - Total 25 Types 12/1/7/2/1/0/0/1/0/1 Lore% 94 Gallery% 87 Achievement% 56 Wizard Run 0 Options --------- Layout 1 ASCII 0 Keyboard 0 Movement Numpad Keybinds 0 Fullscreen 1 Font 24/Proggy Map View 50x35 Zoom Use 0% Tactical HUD 0 Map Filters NONE Filters NONE Steam 1 RUN: 22544c2d-7541-4fe5-876e-1455b0b7c601